{"text_format":"1","workbook":"xlsx","n_sheets":9,"sheets":["Program Guidelines","Instructions","Registration Form","Building & Utility Data","Facility List-Internal","Terms & Conditions","Signature Page","Version","Support"],"not_rendered":{"charts":0,"images":7,"macros":1,"external_links":0,"defined_names":17,"comments":1,"pivot_tables":0},"unopened":[],"bounds":{"document_bytes":16777216,"sheet_cells":100000,"rows_first":2000,"rows_last":500,"rows_between":2000,"halvings":0,"cell_chars":16384,"cell_head_chars":4096},"cells_cut":0,"cells_raw":0,"read":"whole","date_system":"1900"}

{"sheet":"Program Guidelines","index":0,"n_rows":39,"n_cols":2,"rows_kept":39,"cut":false,"hidden":false,"merged":[[13,1,13,13],[0,1,0,13],[1,1,1,13],[2,1,8,13],[11,1,11,13],[12,1,12,13],[9,1,9,13],[10,1,10,13],[69,14,70,14],[64,14,67,14],[38,1,71,13],[37,1,37,13],[15,1,36,13],[71,14,71,16]]}
[null,"LOCAL GOVERNMENT ENERGY AUDIT (LGEA) PROGRAM                                                                 \nProgram Guidelines & Application\n\nJuly 1, 2016 - June 30, 2017                                                                                                         "]
[null,"Program Overview"]
[null,"The New Jersey Board of Public Utilities (BPU) has authorized the Local Government Energy Audit (LGEA) Program to provide free energy audits to New Jersey’s government-related entities. Program objectives include:\n          • Eliminating costs associated with having an energy audit performed;\n          • Reducing energy costs incurred by the entities eligible for this program; \n          • Encouraging eligible entities to implement energy conservation measures (ECMs) recommended in the audit report(s);\n          • Reducing the impacts of energy production and use on the environment.                   \nParticipants in this program are also eligible to receive incentives toward the cost of implementing ECMs recommended in the final energy audit report(s) through the suite of programs offered under New Jersey's Clean Energy Program (NJCEP), Commercial & Industrial (C&I) market sector."]
[]
[]
[]
[]
[]
[]
[null,"Program Funding "]
[null,"Program is budgeted through June 30, 2017. Applications are reviewed and funds committed on a first come, first served basis provided all program requirements are met.  "]
[null,"Document Instructions"]
[null,"This Excel document is an all-inclusive package of program guidelines and application forms that are required in order to take advantage of this initiative. Please follow instructions on the next tab (\"Instructions\") on how to complete and submit this package to the program and begin the process of recieving a free energy audit. \nAll questions pertaining to this application may be emailed to LGEA@NJCleanEnergy.com or directed to 866-NJSMART."]
[null,"Eligibility "]
[]
[null,"1) The LGEA program is available to the following entities that contribute to the Societal Benefits Charge (SBC) Fund through either their electric and/or gas utilities (see \"Terms & Conditions\" tab for additional information): \n          • “State contracting agency” as defined by N.J.S.A. 52:34-35 \n          • “Public agency” as defined by N.J.S.A. 52:35A-1\n          • Local governments per Local Public Contracts Law (N.J.S.A. 40A:11-1) \n          • Local governments per Public School Contracts Law (N.J.S.A. 18A:18A-1) \n          • County colleges per County College Contracts Law (N.J.S.A.18A:64A-25.1)\n          • NJ State Colleges or State Universities per State College Contracts Law (N.J.S.A.18A:64-52)\n          • Non-profit charitable organizations per Section 501(c)(3) of the Internal Revenue Code.    \n                                                                                                                                                                                                                                                                                                                                                                                                                                         2) Applicants may apply for an energy audit for buildings that they own. A building may still be eligible if the Applicant leases the building and provides supporting documentation from the building owner before having an energy audit performed.\n\n3) An eligible building must have a peak electric demand of 200kW or greater in the most recent twelve (12) months of utility data in order to qualify (Please refer to the \"Instructions\" tab on how to calculate your peak demand). Buildings that do not meet this requirement will be recommended to apply for the Direct Install program. TRC will have the ability to grant exceptions to the kW requirement, on a per building basis, if the Applicant can demonstrate they meet or identify with at least one of the following (see \"Registration Form\" tab):\n          • An Energy Savings Improvement Program (ESIP) is an anticipated source of funding;\n          • the Energy Resilience Bank (ERB) is an anticipated source of financing;\n          • master or campus metering arrangement on-site, where demand of any one building is unknown;\n          • concerns about the building shell, which requires a closer review through an energy audit;                                                                                                                                                                                                                                                        \n          • a Direct Install project was already completed in a building;\n          • unable to commit to the turnkey Direct Install program process at this time due to financial constraints, limitations by board or contracting  \n              authority, desire to understand energy profile of all buildings prior to prioritizing resources, etc. (additional information may be requested);                                                                                                                                                                                                                                                                          \n          • and other requests for exemption may be considered by TRC on a case-by-case basis, subject to review and approval by the Program Administrator \n             and/or NJBPU (additional information may be requested).\n\n4) Previous Program Participants: The LGEA program is available to buildings never previously audited under the program, as well as buildings that have received an audit so long as the audit conducted under the LGEA program is at least three (3) years old, measured from the audit report approval date. All program requirements must be met in order for an entity to qualify for a second energy audit. If you are unsure of the date that an audit report(s) was approved, please contact LGEA@NJCleanEnergy.com for more information.\n\n5) There is no cost to the Applicant, although audit value is limited to $100,000 per applying entity, per program year. \n                                                                                                                                                                                                                                                                                                                                                                                                                                    "]
[]
[]
[]
[]
[]
[]
[]
[]
[]
[]
[]
[]
[]
[]
[]
[]
[]
[]
[]
[]
[]
[null,"Energy Audit Scope of Work"]
[null,"The LGEA Program will deliver the following scope of work:\n\nI. Historic Energy Consumption: \na) Compile energy usage and costs for each facility/building for the twelve (12) months prior to the audit including kW, kWh, BTUs, therms, etc.,    and include billing meter readings that corroborate usage; \nb) Identify the utility rate schedule under which services are provided to each meter; and \nc) Enter the required building and utility data into the U.S. Environmental  Protection Agency’s (EPA) Portfolio Manager energy benchmarking system, note the EPA Score for each building, and provide the information necessary to access the Portfolio Manager account.\n\nII. Facility and Measure Description: \na) Characterize building usage and occupancy profiles, facility size, construction features including an assessment of the building envelope (windows, doors, insulation, etc.) and equipment description and operations.\n\nIII. Equipment List: \na) Provide a detailed inventory of equipment, which contains pertinent information for all energy consuming equipment including estimate of equipment efficiency and remaining useful life.\n\nIV. Energy Conservation Measures: \na) Provide a narrative summary for each energy conservation measure recommended and key assumptions made in analyzing each measure and describe the method of analysis. \nb) Provide the following for each recommended energy conservation measure:\n          • Description of energy conservation measure;\n          • Estimated installation cost and source of cost estimate;\n          • Estimated energy savings (kW, kWh, therms, etc.);\n          • Estimated   annual   energy   cost   savings   (including any   assumptions regarding future energy costs, life of measure, etc.);\n          • Estimate of any rebates/financial incentives available through NJCEP or from other sources;\n          • Estimated annual operating cost savings;\n          • Estimated lifetime energy cost savings;\n          • Simple payback;\n          • Estimated return on investment; and\n          • Options for funding the installation of recommended measures.                                                                                                                                                                                             c) In order to provide compatibility with the ESIP and ERB initiatives, the energy audit scope will include an evaluation of energy related water conservation measures, demand response potential, as well as the estimated greenhouse gas reduction for each recommended measure.\n\nV. Renewable/Distributed Energy Measures: \na) Perform a high level assessment of renewable and distributed energy technologies which includes:\n          • Recommendations on the potential/viability of various renewable/distributed energy technologies;\n          • Identification of available grants, incentives, and sources of funding; and\n          • Analysis of costs and savings comparing current and future costs of electric and thermal energy with and without each \n             technology assessed.\n\nVI. Energy Purchasing and Procurement Strategies: \na) Provide the following for each facility:\n          • Develop a load profile for each electric and natural gas account;\n          • Provide an analysis of the utility tariff under which the facility is currently served;\n          • Assess potential savings from purchasing from third party suppliers; and\n\nVII. Method of Analysis: \na) Provide a description of and documentation for and tools used to perform energy use and energy savings estimates and clearly identify all assumptions and estimates used in the analysis."]

{"sheet":"Instructions","index":1,"n_rows":22,"n_cols":2,"rows_kept":22,"cut":false,"hidden":false,"merged":[[0,1,0,13],[1,1,1,13],[21,1,23,13],[19,1,19,13],[2,15,2,27],[3,15,3,27],[2,1,18,13]]}
[null,"LOCAL GOVERNMENT ENERGY AUDIT (LGEA) PROGRAM                                                                 \nProgram Guidelines & Application\n\nJuly 1, 2016 - June 30, 2017                                                                                                         "]
[null,"Instructions "]
[null,"1) Complete all tabs of this Application workbook; all white cells require your input. Please make sure to read instructions at the top of each tab for additional guidance.\n\n2) Read all \"Terms & Conditions\" \n   \n3) Review and sign \"Signature Page\"\n \n4) Submit the following to LGEA@NJCleanEnergy.com \n           • This completed Application Workbook (Excel format);\n           • Completed and signed \"Signature Page\" (E-signature permitted, otherwise scanned PDF or JPEG format).\n           • UTILITY BILLS:\n                     a) Most recent fourteen (14) months of utility bills (oldest bill will be no older than two (2) years); \n                     b) third-party supply bills also required (if applicable) and must be identified on the \"Building & Utility Data\" tab; \n                     c) bills provided must be for all electric, natural gas, fuel oil, and/or propane accounts as applicable and consistent with information listed on the \n                        \"Building & Utility Data\" tab (vehicle fuel not included); \n                     d) all bills/data must be for the same fourteen (14) month period;\n                     e) bills must be organized per building, per utility account, and in consecutive/chronological order (i.e. If applying for two (2) buildings and each has \n                       one (1) electric and one (1) gas account you will need to prepare four documents, each labeled for the appropriate building and account number);  \n                     f) submit utility data in PDF format, or Excel if providing summary from a utility company; \n                     g) Excel spreadsheets from internal utility tracking and other software will NOT be accepted in place of invoices or summaries provided directly by the utility \n                       company;   \n                     h) data should also be provided for any existing on-site renewable energy or cogeneration technology (if applicable).                                                                                                                                                                                                                                                                                                           \n           • Any supplementary documentation supporting the information entered into this Workbook (if applicable).\n\n5) Once the Application package has been recieved and reviewed, the Program Manager will contact the Applicant regarding the scope of the energy audit and next steps.  The Program Manager will be responsible for the scope of work and deliverables defined in this Application. \n\n6) The Applicant will receive an Approval Letter from the Program Manager prior to scheduling of the audit. Once the audit is completed and final Audit Report provided to the Applicant, the Applicant will be required to sign an audit acceptance letter via a form provided at that time.  "]
[]
[]
[]
[]
[]
[]
[]
[]
[]
[]
[]
[]
[]
[]
[]
[]
[null,"Determining Peak Electric Demand"]
[]
[null,"Although the application requires fourteen (14) months of utility data, each building must demonstrate a peak electric demand of 200kW or greater in the most recent twelve (12) months of utility bills in order to qualify for this program. Demand is measured in kilowatts (kW) and expresses the maximum use of electricity at any time during a month in a facility. Because each utility company conveys this usage information differently, please refer to the sample bills below for assistance with locating the kW on an electric bill. Once the demand (in kW) has been identified on twelve (12) months of consecutive bills, the largest number will be the peak electric demand associated with that account number for that building. Buildings with multiple electric accounts must combine the kW for each month.       \n\nApplicants that are customers of municipal or cooperative electric companies may be unable to determine peak electric demand based on a review of the monthly electric bills and should contact the program for assistance. This may apply to buildings located in the following service territories:\n• Borough of Butler\n• Borough of Lavallette\n• Borough of Madison\n• Borough of Milltown\n• Borough of Park Ridge\n• Borough of Pemberton\n• Borough of Seaside Heights\n• Borough of South River\n• City of Vineland\n• Sussex Rural Electric Cooperative\n"]

{"sheet":"Registration Form","index":2,"n_rows":39,"n_cols":8,"rows_kept":39,"cut":false,"hidden":false,"merged":[[31,1,31,3],[31,4,31,5],[31,7,31,8],[28,1,28,3],[28,4,28,8],[29,1,29,3],[29,4,29,8],[30,1,30,3],[30,4,30,5],[30,7,30,8],[37,1,37,7],[32,1,32,8],[33,1,33,7],[34,1,34,7],[35,1,35,7],[36,1,36,7],[0,1,0,8],[10,1,10,8],[25,1,25,5],[25,6,25,8],[11,1,11,7],[12,1,12,7],[22,1,22,8],[24,1,24,5],[24,6,24,8],[8,4,8,5],[8,7,8,8],[6,1,6,3],[6,4,6,8],[21,6,21,8],[21,1,21,5],[1,1,1,8],[27,1,27,2],[27,3,27,4],[27,5,27,8],[9,4,9,5],[9,7,9,8],[19,1,19,5],[19,6,19,8],[16,1,16,7],[17,1,17,7],[13,1,13,7],[14,1,14,7],[15,1,15,7],[18,1,18,7],[20,1,20,5],[20,6,20,8],[4,9,8,12],[38,1,38,7],[4,1,4,2],[4,3,4,4],[4,5,4,8],[5,1,5,2],[5,3,5,4],[5,5,5,8],[8,1,8,3],[7,1,7,3],[7,4,7,8],[23,1,23,8],[26,1,26,2],[26,3,26,4],[26,5,26,8],[9,1,9,3],[2,1,2,4],[2,5,2,6],[2,7,2,8],[3,1,3,4],[3,5,3,6],[3,7,3,8]]}
[null,"LOCAL GOVERNMENT ENERGY AUDIT (LGEA) PROGRAM                                                                 \nRegistration Form\n\nJuly 1, 2016 - June 30, 2017                                                                                                      "]
[null,"Applicant Information"]
[null,"Applying Entity",null,null,null,"Federal ID/SSN",null,"NAICS Code"]
[]
[null,"Primary Contact Full Name",null,"Title",null,"County"]
[]
[null,"Phone Number",null,null,"Email Address"]
[]
[null,"Mailing Address",null,null,"City",null,"State","Zip"]
[]
[null,"Eligibility Checklist (select one):"]
[null,"• State contracting agency"]
[null,"• Public agency"]
[null,"• Local governments per Local Public Contracts Law"]
[null,"• Local governments per Public School Contracts Law"]
[null,"• County colleges per County College Contracts Law"]
[null,"• NJ State Colleges or State Universities per State College Contracts Law"]
[null,"• Nonprofit charitable organizations per Section 501(c)(3) of the Internal Revenue Code"]
[]
[null,"1) Has this entity previously applied and been approved by the Local Government Energy Audit (LGEA) program? \n\nIf yes, briefly describe any major or notable work performed since the last energy audit in Column BM of the Building & Utility Data tab of this workbook."]
[null,"2) Does the applying entity have an existing ENERGY STAR® Portfolio Manager account?"]
[null,"3) How did you hear about this program? "]
[null,"Designated Representative (if other than Applying Entity)"]
[null,"A Designated Representative is a person(s) not directly associated with the applying entity but will be contributing to the application and/or auditing process. The program requires that you identify this person(s) so that we may work directly with them regarding your application and/or energy audit, otherwise we will not be able to share any information regarding your application. \n\nDesignated Representatives may include engineers, architects, green team volunteers, parishoners, etc. Note that all documents requiring signatures must be signed by the appropriate decision-maker at the applying entity and a Designated Representative, if applicable. "]
[null,"Company Name",null,null,null,null,"Federal ID/SSN"]
[]
[null,"Primary Contact Full Name ",null,"Title",null,"Relationship to Applying Entity"]
[]
[null,"Phone Number",null,null,"Email Address"]
[]
[null,"Mailing Address",null,null,"City",null,"State","Zip"]
[]
[null,"Available waivers for buildings with peak kW less than 200kW (you may select more than one):"]
[null,"• ESIP is an anticipated source of funding"]
[null,"• ERB is an anticipated source of financing"]
[null,"• Building shell concerns, which require a closer review through an audit"]
[null,"• Master or campus metering arrangement on-site, where demand of any one building is unknown"]
[null,"• Already participated in Direct Install"]
[null,"• Demonstrates an interest in measures that are not available under the Direct Install program, such as building shell measures (e.g. insulation, windows, etc.) "]

{"sheet":"Building & Utility Data","index":3,"n_rows":58,"n_cols":65,"rows_kept":58,"cut":false,"hidden":false,"merged":[[5,1,5,14],[5,15,5,33],[5,34,5,50],[5,51,5,55],[5,56,5,64],[4,15,4,55],[0,15,0,16],[0,1,0,9],[1,1,1,9],[3,2,3,9]]}
[null,"LOCAL GOVERNMENT ENERGY AUDIT (LGEA) PROGRAM                                                                 \nBuilding & Utility Data\n\nJuly 1, 2016 - June 30, 2017                                                                                                      "]
[null,"INSTRUCTIONS: \n1) Complete the information in the chart below for all buildings you wish to have audited. Please include as much of the information as possible. Pay attention to any pop-up comments in the columns for additional guidance (identified with a red triangle in the top right corner of a cell).\n\n2) This list should include all buildings owned and/or leased by the Applicant. If some buildings have been excluded please explain why in the designated space below. \n\n3) Each building should be listed separately on each line; a building is defined as a stand alone structure. If you are unsure if a facility should be considered one building or multiple buildings (which may be the case with water, wastewater and other processing facilities), please send an email to LGEA@NJCleanEnergy.com for guidance before submitting the application. \n\n4) If submitting an application for a campus or other master meter arrangement, list each shared or main account on a separate line and list the applicable buildings below it. You must include data for each individual building (i.e. address, square feet, etc.) and identify if any sub-metering exists in the Notes section (i.e. Column BM).   \n\n5) If you need additional space for account numbers, there are columns hidden in this worksheet that will accomodate up to 10 electric and 10 natural gas accounts (see columns W:AC and AO:AU). To display hidden columns, select the columns adjacent to either side of the columns you want to unhide (i.e. columns V and AD, AN and AV) by selecting both column headings. Right click within the two columns now highlighted in gray and select \"unhide\".  \n\n6) Utilize Column BM to mention any information not covered in this worksheet but should be included in the energy audit. If applicable, describe things such as metering arrangements, on-site generation, fuel or battery storage capabilities, facility changes of use, plans for gut rehab or major construction, etc. "]
[]
[null,"Buildings Excluded and why?"]
[null,null,null,null,null,null,null,null,null,null,null,null,null,null,null,"UTILITY INFORMATION"]
[null,"Building Information",null,null,null,null,null,null,null,null,null,null,null,null,null,"Electric",null,null,null,null,null,null,null,null,null,null,null,null,null,null,null,null,null,null,"Natural Gas ",null,null,null,null,null,null,null,null,null,null,null,null,null,null,null,null,"Other Utility",null,null,null,null,"Other Information"]
[null,"Building Number","Building Name","Building Address","City","Zip Code","Building Type","Year \nBuilt","Year of Last Renovation\n(if applicable)","Size of Building (Square Feet)","# of Floors","# of Occupants","# of Hours \nOccupied Per Week","Open Weekends \n(Yes / No)","# of Months Operated","Electric Provider","14 Month Data Period\n(Begins)","14 Month Data Period \n(Ends)","Maximum kW\n(see \"Instructions\" tab)","Electric Account (1)","Electric Account (2)","Electric Account (3)","Electric Account (4)","Electric Account (5)","Electric Account (6)","Electric Account (7)","Electric Account (8)","Electric Account \n(9)","Electric Account (10)","Identify if Unmetered Accounts are Included\n(Yes / No)","Third-Party Electric Supplier\n(Yes / No)","14 Months Total kWh \n(Total all Accounts per Building)","14 Months Total Electricity Cost \n(Total all Accounts per Building)","% of Building \nCooled","Natural Gas Provider","14 Month Data Period \n(Begins)","14 Month Data Period \n(Ends)","Natural Gas Account (1)","Natural Gas Account (2)","Natural Gas Account (3)","Natural Gas Account (4)","Natural Gas Account (5)","Natural Gas Account (6)","Natural Gas Account (7)","Natural Gas Account (8)","Natural Gas Account (9)","Natural Gas Account (10)","Third-Party Natural Gas Supplier\n(Yes / No)","14 Months Total Therms \n(Total all Accounts per Building)","14 Months Total Natural Gas Cost \n(Total all Accounts per Building)","% of Building Heated","Other Energy Provider (Fuel Oil, Propane, Etc.)","Other 2","Annual Use in Gallons \n(Fuel Oil / Propane Only)","Annual Cost \n(Fuel Oil / Propane Only)","Solar Panels or Other Generation On Site \n(Yes / No or Description)","# of \nComputers","Cooking Facilities \n(Yes / No)","# of Walk-In Refrigerators / Freezers","Swimming Pool\n (Yes / No)","Parking Lot Lighting Included In Electric Bill \n(Yes / No)","Commercial Laundry \nOn Site \n(Yes / No)","Other Energy-Intensive Equipment On Site \n(Yes / No)","Other Energy-Intensive Equipment  \n(Provide description, if applicable)","Other Facility Information \n(Include Notes Here)"]
[null,"Example","ABC School Example","One Burlington Way","Paterson","07470","School (K-12)",1995,null,35000,2,200,50,"Yes",12,"PSE&G","2014-01-01"," 03/01/16",216,5555555555,"n/a","n/a",null,null,null,null,null,null,null,null,null,561600,78624,0.3,"PSE&G","2014-01-01"," 03/01/16",999999999,"n/a","n/a",null,null,null,null,null,null,null,null,34500,29325,0.9,"None",null,null,null,"No",50,"Yes",1,"No","Unsure","No","No","n/a"]
[null,1]
[null,2]
[null,3]
[null,4]
[null,5]
[null,6]
[null,7]
[null,8]
[null,9]
[null,10]
[null,11]
[null,12]
[null,13]
[null,14]
[null,15]
[null,16]
[null,17]
[null,18]
[null,19]
[null,20]
[null,21]
[null,22]
[null,23]
[null,24]
[null,25]
[null,26]
[null,27]
[null,28]
[null,29]
[null,30]
[null,31]
[null,32]
[null,33]
[null,34]
[null,35]
[null,36]
[null,37]
[null,38]
[null,39]
[null,40]
[null,41]
[null,42]
[null,43]
[null,44]
[null,45]
[null,46]
[null,47]
[null,48]
[null,49]
[null,50]

{"sheet":"Facility List-Internal","index":4,"n_rows":52,"n_cols":4,"rows_kept":52,"cut":false,"hidden":true,"merged":[[0,1,0,3]]}
[null,"FACILITY LIST                                                                                                                      ALL BUILDINGS                                                            "]
[null,"Building Name","Square Footage","Maximum kW"]
[1,{"$f":"IF('Building & Utility Data'!C9=\"\", \"\",'Building & Utility Data'!C9)","v":""},{"$f":"IF('Building & Utility Data'!J9=\"\",\"\",'Building & Utility Data'!J9)","v":""},{"$f":"IF('Building & Utility Data'!S9=\"\",\"\",'Building & Utility Data'!S9)","v":""}]
[2,{"$f":"IF('Building & Utility Data'!C10=\"\", \"\",'Building & Utility Data'!C10)","v":""},{"$f":"IF('Building & Utility Data'!J10=\"\",\"\",'Building & Utility Data'!J10)","v":""},{"$f":"IF('Building & Utility Data'!S10=\"\",\"\",'Building & Utility Data'!S10)","v":""}]
[3,{"$f":"IF('Building & Utility Data'!C11=\"\", \"\",'Building & Utility Data'!C11)","v":""},{"$f":"IF('Building & Utility Data'!J11=\"\",\"\",'Building & Utility Data'!J11)","v":""},{"$f":"IF('Building & Utility Data'!S11=\"\",\"\",'Building & Utility Data'!S11)","v":""}]
[4,{"$f":"IF('Building & Utility Data'!C12=\"\", \"\",'Building & Utility Data'!C12)","v":""},{"$f":"IF('Building & Utility Data'!J12=\"\",\"\",'Building & Utility Data'!J12)","v":""},{"$f":"IF('Building & Utility Data'!S12=\"\",\"\",'Building & Utility Data'!S12)","v":""}]
[5,{"$f":"IF('Building & Utility Data'!C13=\"\", \"\",'Building & Utility Data'!C13)","v":""},{"$f":"IF('Building & Utility Data'!J13=\"\",\"\",'Building & Utility Data'!J13)","v":""},{"$f":"IF('Building & Utility Data'!S13=\"\",\"\",'Building & Utility Data'!S13)","v":""}]
[6,{"$f":"IF('Building & Utility Data'!C14=\"\", \"\",'Building & Utility Data'!C14)","v":""},{"$f":"IF('Building & Utility Data'!J14=\"\",\"\",'Building & Utility Data'!J14)","v":""},{"$f":"IF('Building & Utility Data'!S14=\"\",\"\",'Building & Utility Data'!S14)","v":""}]
[7,{"$f":"IF('Building & Utility Data'!C15=\"\", \"\",'Building & Utility Data'!C15)","v":""},{"$f":"IF('Building & Utility Data'!J15=\"\",\"\",'Building & Utility Data'!J15)","v":""},{"$f":"IF('Building & Utility Data'!S15=\"\",\"\",'Building & Utility Data'!S15)","v":""}]
[8,{"$f":"IF('Building & Utility Data'!C16=\"\", \"\",'Building & Utility Data'!C16)","v":""},{"$f":"IF('Building & Utility Data'!J16=\"\",\"\",'Building & Utility Data'!J16)","v":""},{"$f":"IF('Building & Utility Data'!S16=\"\",\"\",'Building & Utility Data'!S16)","v":""}]
[9,{"$f":"IF('Building & Utility Data'!C17=\"\", \"\",'Building & Utility Data'!C17)","v":""},{"$f":"IF('Building & Utility Data'!J17=\"\",\"\",'Building & Utility Data'!J17)","v":""},{"$f":"IF('Building & Utility Data'!S17=\"\",\"\",'Building & Utility Data'!S17)","v":""}]
[10,{"$f":"IF('Building & Utility Data'!C18=\"\", \"\",'Building & Utility Data'!C18)","v":""},{"$f":"IF('Building & Utility Data'!J18=\"\",\"\",'Building & Utility Data'!J18)","v":""},{"$f":"IF('Building & Utility Data'!S18=\"\",\"\",'Building & Utility Data'!S18)","v":""}]
[11,{"$f":"IF('Building & Utility Data'!C19=\"\", \"\",'Building & Utility Data'!C19)","v":""},{"$f":"IF('Building & Utility Data'!J19=\"\",\"\",'Building & Utility Data'!J19)","v":""},{"$f":"IF('Building & Utility Data'!S19=\"\",\"\",'Building & Utility Data'!S19)","v":""}]
[12,{"$f":"IF('Building & Utility Data'!C20=\"\", \"\",'Building & Utility Data'!C20)","v":""},{"$f":"IF('Building & Utility Data'!J20=\"\",\"\",'Building & Utility Data'!J20)","v":""},{"$f":"IF('Building & Utility Data'!S20=\"\",\"\",'Building & Utility Data'!S20)","v":""}]
[13,{"$f":"IF('Building & Utility Data'!C21=\"\", \"\",'Building & Utility Data'!C21)","v":""},{"$f":"IF('Building & Utility Data'!J21=\"\",\"\",'Building & Utility Data'!J21)","v":""},{"$f":"IF('Building & Utility Data'!S21=\"\",\"\",'Building & Utility Data'!S21)","v":""}]
[14,{"$f":"IF('Building & Utility Data'!C22=\"\", \"\",'Building & Utility Data'!C22)","v":""},{"$f":"IF('Building & Utility Data'!J22=\"\",\"\",'Building & Utility Data'!J22)","v":""},{"$f":"IF('Building & Utility Data'!S22=\"\",\"\",'Building & Utility Data'!S22)","v":""}]
[15,{"$f":"IF('Building & Utility Data'!C23=\"\", \"\",'Building & Utility Data'!C23)","v":""},{"$f":"IF('Building & Utility Data'!J23=\"\",\"\",'Building & Utility Data'!J23)","v":""},{"$f":"IF('Building & Utility Data'!S23=\"\",\"\",'Building & Utility Data'!S23)","v":""}]
[16,{"$f":"IF('Building & Utility Data'!C24=\"\", \"\",'Building & Utility Data'!C24)","v":""},{"$f":"IF('Building & Utility Data'!J24=\"\",\"\",'Building & Utility Data'!J24)","v":""},{"$f":"IF('Building & Utility Data'!S24=\"\",\"\",'Building & Utility Data'!S24)","v":""}]
[17,{"$f":"IF('Building & Utility Data'!C25=\"\", \"\",'Building & Utility Data'!C25)","v":""},{"$f":"IF('Building & Utility Data'!J25=\"\",\"\",'Building & Utility Data'!J25)","v":""},{"$f":"IF('Building & Utility Data'!S25=\"\",\"\",'Building & Utility Data'!S25)","v":""}]
[18,{"$f":"IF('Building & Utility Data'!C26=\"\", \"\",'Building & Utility Data'!C26)","v":""},{"$f":"IF('Building & Utility Data'!J26=\"\",\"\",'Building & Utility Data'!J26)","v":""},{"$f":"IF('Building & Utility Data'!S26=\"\",\"\",'Building & Utility Data'!S26)","v":""}]
[19,{"$f":"IF('Building & Utility Data'!C27=\"\", \"\",'Building & Utility Data'!C27)","v":""},{"$f":"IF('Building & Utility Data'!J27=\"\",\"\",'Building & Utility Data'!J27)","v":""},{"$f":"IF('Building & Utility Data'!S27=\"\",\"\",'Building & Utility Data'!S27)","v":""}]
[20,{"$f":"IF('Building & Utility Data'!C28=\"\", \"\",'Building & Utility Data'!C28)","v":""},{"$f":"IF('Building & Utility Data'!J28=\"\",\"\",'Building & Utility Data'!J28)","v":""},{"$f":"IF('Building & Utility Data'!S28=\"\",\"\",'Building & Utility Data'!S28)","v":""}]
[21,{"$f":"IF('Building & Utility Data'!C29=\"\", \"\",'Building & Utility Data'!C29)","v":""},{"$f":"IF('Building & Utility Data'!J29=\"\",\"\",'Building & Utility Data'!J29)","v":""},{"$f":"IF('Building & Utility Data'!S29=\"\",\"\",'Building & Utility Data'!S29)","v":""}]
[22,{"$f":"IF('Building & Utility Data'!C30=\"\", \"\",'Building & Utility Data'!C30)","v":""},{"$f":"IF('Building & Utility Data'!J30=\"\",\"\",'Building & Utility Data'!J30)","v":""},{"$f":"IF('Building & Utility Data'!S30=\"\",\"\",'Building & Utility Data'!S30)","v":""}]
[23,{"$f":"IF('Building & Utility Data'!C31=\"\", \"\",'Building & Utility Data'!C31)","v":""},{"$f":"IF('Building & Utility Data'!J31=\"\",\"\",'Building & Utility Data'!J31)","v":""},{"$f":"IF('Building & Utility Data'!S31=\"\",\"\",'Building & Utility Data'!S31)","v":""}]
[24,{"$f":"IF('Building & Utility Data'!C32=\"\", \"\",'Building & Utility Data'!C32)","v":""},{"$f":"IF('Building & Utility Data'!J32=\"\",\"\",'Building & Utility Data'!J32)","v":""},{"$f":"IF('Building & Utility Data'!S32=\"\",\"\",'Building & Utility Data'!S32)","v":""}]
[25,{"$f":"IF('Building & Utility Data'!C33=\"\", \"\",'Building & Utility Data'!C33)","v":""},{"$f":"IF('Building & Utility Data'!J33=\"\",\"\",'Building & Utility Data'!J33)","v":""},{"$f":"IF('Building & Utility Data'!S33=\"\",\"\",'Building & Utility Data'!S33)","v":""}]
[26,{"$f":"IF('Building & Utility Data'!C34=\"\", \"\",'Building & Utility Data'!C34)","v":""},{"$f":"IF('Building & Utility Data'!J34=\"\",\"\",'Building & Utility Data'!J34)","v":""},{"$f":"IF('Building & Utility Data'!S34=\"\",\"\",'Building & Utility Data'!S34)","v":""}]
[27,{"$f":"IF('Building & Utility Data'!C35=\"\", \"\",'Building & Utility Data'!C35)","v":""},{"$f":"IF('Building & Utility Data'!J35=\"\",\"\",'Building & Utility Data'!J35)","v":""},{"$f":"IF('Building & Utility Data'!S35=\"\",\"\",'Building & Utility Data'!S35)","v":""}]
[28,{"$f":"IF('Building & Utility Data'!C36=\"\", \"\",'Building & Utility Data'!C36)","v":""},{"$f":"IF('Building & Utility Data'!J36=\"\",\"\",'Building & Utility Data'!J36)","v":""},{"$f":"IF('Building & Utility Data'!S36=\"\",\"\",'Building & Utility Data'!S36)","v":""}]
[29,{"$f":"IF('Building & Utility Data'!C37=\"\", \"\",'Building & Utility Data'!C37)","v":""},{"$f":"IF('Building & Utility Data'!J37=\"\",\"\",'Building & Utility Data'!J37)","v":""},{"$f":"IF('Building & Utility Data'!S37=\"\",\"\",'Building & Utility Data'!S37)","v":""}]
[30,{"$f":"IF('Building & Utility Data'!C38=\"\", \"\",'Building & Utility Data'!C38)","v":""},{"$f":"IF('Building & Utility Data'!J38=\"\",\"\",'Building & Utility Data'!J38)","v":""},{"$f":"IF('Building & Utility Data'!S38=\"\",\"\",'Building & Utility Data'!S38)","v":""}]
[31,{"$f":"IF('Building & Utility Data'!C39=\"\", \"\",'Building & Utility Data'!C39)","v":""},{"$f":"IF('Building & Utility Data'!J39=\"\",\"\",'Building & Utility Data'!J39)","v":""},{"$f":"IF('Building & Utility Data'!S39=\"\",\"\",'Building & Utility Data'!S39)","v":""}]
[32,{"$f":"IF('Building & Utility Data'!C40=\"\", \"\",'Building & Utility Data'!C40)","v":""},{"$f":"IF('Building & Utility Data'!J40=\"\",\"\",'Building & Utility Data'!J40)","v":""},{"$f":"IF('Building & Utility Data'!S40=\"\",\"\",'Building & Utility Data'!S40)","v":""}]
[33,{"$f":"IF('Building & Utility Data'!C41=\"\", \"\",'Building & Utility Data'!C41)","v":""},{"$f":"IF('Building & Utility Data'!J41=\"\",\"\",'Building & Utility Data'!J41)","v":""},{"$f":"IF('Building & Utility Data'!S41=\"\",\"\",'Building & Utility Data'!S41)","v":""}]
[34,{"$f":"IF('Building & Utility Data'!C42=\"\", \"\",'Building & Utility Data'!C42)","v":""},{"$f":"IF('Building & Utility Data'!J42=\"\",\"\",'Building & Utility Data'!J42)","v":""},{"$f":"IF('Building & Utility Data'!S42=\"\",\"\",'Building & Utility Data'!S42)","v":""}]
[35,{"$f":"IF('Building & Utility Data'!C43=\"\", \"\",'Building & Utility Data'!C43)","v":""},{"$f":"IF('Building & Utility Data'!J43=\"\",\"\",'Building & Utility Data'!J43)","v":""},{"$f":"IF('Building & Utility Data'!S43=\"\",\"\",'Building & Utility Data'!S43)","v":""}]
[36,{"$f":"IF('Building & Utility Data'!C44=\"\", \"\",'Building & Utility Data'!C44)","v":""},{"$f":"IF('Building & Utility Data'!J44=\"\",\"\",'Building & Utility Data'!J44)","v":""},{"$f":"IF('Building & Utility Data'!S44=\"\",\"\",'Building & Utility Data'!S44)","v":""}]
[37,{"$f":"IF('Building & Utility Data'!C45=\"\", \"\",'Building & Utility Data'!C45)","v":""},{"$f":"IF('Building & Utility Data'!J45=\"\",\"\",'Building & Utility Data'!J45)","v":""},{"$f":"IF('Building & Utility Data'!S45=\"\",\"\",'Building & Utility Data'!S45)","v":""}]
[38,{"$f":"IF('Building & Utility Data'!C46=\"\", \"\",'Building & Utility Data'!C46)","v":""},{"$f":"IF('Building & Utility Data'!J46=\"\",\"\",'Building & Utility Data'!J46)","v":""},{"$f":"IF('Building & Utility Data'!S46=\"\",\"\",'Building & Utility Data'!S46)","v":""}]
[39,{"$f":"IF('Building & Utility Data'!C47=\"\", \"\",'Building & Utility Data'!C47)","v":""},{"$f":"IF('Building & Utility Data'!J47=\"\",\"\",'Building & Utility Data'!J47)","v":""},{"$f":"IF('Building & Utility Data'!S47=\"\",\"\",'Building & Utility Data'!S47)","v":""}]
[40,{"$f":"IF('Building & Utility Data'!C48=\"\", \"\",'Building & Utility Data'!C48)","v":""},{"$f":"IF('Building & Utility Data'!J48=\"\",\"\",'Building & Utility Data'!J48)","v":""},{"$f":"IF('Building & Utility Data'!S48=\"\",\"\",'Building & Utility Data'!S48)","v":""}]
[41,{"$f":"IF('Building & Utility Data'!C49=\"\", \"\",'Building & Utility Data'!C49)","v":""},{"$f":"IF('Building & Utility Data'!J49=\"\",\"\",'Building & Utility Data'!J49)","v":""},{"$f":"IF('Building & Utility Data'!S49=\"\",\"\",'Building & Utility Data'!S49)","v":""}]
[42,{"$f":"IF('Building & Utility Data'!C50=\"\", \"\",'Building & Utility Data'!C50)","v":""},{"$f":"IF('Building & Utility Data'!J50=\"\",\"\",'Building & Utility Data'!J50)","v":""},{"$f":"IF('Building & Utility Data'!S50=\"\",\"\",'Building & Utility Data'!S50)","v":""}]
[43,{"$f":"IF('Building & Utility Data'!C51=\"\", \"\",'Building & Utility Data'!C51)","v":""},{"$f":"IF('Building & Utility Data'!J51=\"\",\"\",'Building & Utility Data'!J51)","v":""},{"$f":"IF('Building & Utility Data'!S51=\"\",\"\",'Building & Utility Data'!S51)","v":""}]
[44,{"$f":"IF('Building & Utility Data'!C52=\"\", \"\",'Building & Utility Data'!C52)","v":""},{"$f":"IF('Building & Utility Data'!J52=\"\",\"\",'Building & Utility Data'!J52)","v":""},{"$f":"IF('Building & Utility Data'!S52=\"\",\"\",'Building & Utility Data'!S52)","v":""}]
[45,{"$f":"IF('Building & Utility Data'!C53=\"\", \"\",'Building & Utility Data'!C53)","v":""},{"$f":"IF('Building & Utility Data'!J53=\"\",\"\",'Building & Utility Data'!J53)","v":""},{"$f":"IF('Building & Utility Data'!S53=\"\",\"\",'Building & Utility Data'!S53)","v":""}]
[46,{"$f":"IF('Building & Utility Data'!C54=\"\", \"\",'Building & Utility Data'!C54)","v":""},{"$f":"IF('Building & Utility Data'!J54=\"\",\"\",'Building & Utility Data'!J54)","v":""},{"$f":"IF('Building & Utility Data'!S54=\"\",\"\",'Building & Utility Data'!S54)","v":""}]
[47,{"$f":"IF('Building & Utility Data'!C55=\"\", \"\",'Building & Utility Data'!C55)","v":""},{"$f":"IF('Building & Utility Data'!J55=\"\",\"\",'Building & Utility Data'!J55)","v":""},{"$f":"IF('Building & Utility Data'!S55=\"\",\"\",'Building & Utility Data'!S55)","v":""}]
[48,{"$f":"IF('Building & Utility Data'!C56=\"\", \"\",'Building & Utility Data'!C56)","v":""},{"$f":"IF('Building & Utility Data'!J56=\"\",\"\",'Building & Utility Data'!J56)","v":""},{"$f":"IF('Building & Utility Data'!S56=\"\",\"\",'Building & Utility Data'!S56)","v":""}]
[49,{"$f":"IF('Building & Utility Data'!C57=\"\", \"\",'Building & Utility Data'!C57)","v":""},{"$f":"IF('Building & Utility Data'!J57=\"\",\"\",'Building & Utility Data'!J57)","v":""},{"$f":"IF('Building & Utility Data'!S57=\"\",\"\",'Building & Utility Data'!S57)","v":""}]
[50,{"$f":"IF('Building & Utility Data'!C58=\"\", \"\",'Building & Utility Data'!C58)","v":""},{"$f":"IF('Building & Utility Data'!J58=\"\",\"\",'Building & Utility Data'!J58)","v":""},{"$f":"IF('Building & Utility Data'!S58=\"\",\"\",'Building & Utility Data'!S58)","v":""}]

{"sheet":"Terms & Conditions","index":5,"n_rows":38,"n_cols":16,"rows_kept":38,"cut":false,"hidden":false,"merged":[[35,1,35,13],[37,1,37,13],[25,1,25,13],[27,1,27,13],[29,1,29,13],[31,1,31,13],[33,1,33,13],[0,1,0,13],[1,1,1,13],[2,1,2,13],[3,1,3,13],[4,1,4,13],[17,1,17,13],[19,1,19,13],[21,1,21,13],[23,1,23,13],[6,1,6,13],[8,1,8,13],[10,1,10,13],[12,1,12,13],[14,1,14,13]]}
[null,"LOCAL GOVERNMENT ENERGY AUDIT (LGEA) PROGRAM                                                                 \nProgram Guidelines & Application\n\nJuly 1, 2016 - June 30, 2017                                                                                                         "]
[null,"Terms & Conditions"]
[null,"ADMINISTRATOR – New Jersey Board of Public Utilities (\"NJ BPU\")"]
[]
[null,"APPLICANT – Those non-residential electric and/or gas service customers of the New Jersey Utilities who participate in this Program. "]
[]
[null,"CHANGES TO THE PROGRAM – The Program and participation agreements may be changed by the Program Manager and/or Administrator at any time without notice. Approved applications, however, will be processed to completion under the agreements in effect at the time of the Program Manager’s approval."]
[]
[null,"COMMERCIAL/INDUSTRIAL PROGRAM MANAGER (“PROGRAM MANAGER”) – TRC"]
[]
[null,"ENDORSEMENT – The Program Manager and Administrator do not endorse, support or recommend any particular manufacturer, product or system design in promoting this Program."]
[]
[null,"ELIGIBILITY - See the “Guidelines” tab for information regarding eligibility."]
[]
[null,"ENERGY AUDIT –Survey of the existing energy systems of a facility for the purpose of proposing energy efficiency and renewable energy measures and verifying that the proposed measures have the potential to generate energy savings. The results of an Energy Audit are presented in a written report; all audit reports are publicly posted on the program website."]
[null,"(NJCleanEnergy.com/LGEA)"]
[]
[null,"ENERGY SAVINGS –Approximate energy saving are included in the report(s) to help make decisions about reducing energy use at the facility.  The report(s) received in this Program, however, is not intended to serve as a detailed engineering design document. It should be noted that detailed design efforts are required in order to implement several of the improvements that may be evaluated as part of the energy audit. The energy conservation measures and estimates of energy consumption contained in the report(s) will be reviewed for technical accuracy.  However, all estimates contained of energy consumption at the site are not guaranteed, because energy consumption ultimately depends on behavioral factors, the weather, and many other uncontrollable variables.  The Program Manager and NJBPU shall in no event be liable should the actual energy consumption vary from the estimated consumption shown in the report(s). "]
[]
[null,"ENERGY CONSERVATION MEASURE (“ECM”) OR ENERGY EFFICIENCY MEASURE (“EEM”) – A measure to reduce energy use or costs, such as the installation of equipment or systems, modification of equipment or systems, or revised operation and maintenance procedures."]
[]
[null,"INSTALLATION COST - Estimated installation costs are based on a variety of sources, including the Program Manager’s own experience at similar facilities, own pricing research using local contractors and vendors, and cost estimating handbooks such as those provided by RS Means.  The cost estimates will represent the Program Manager’s best judgment for the proposed action. The applying entity is encouraged to independently confirm any cost estimates and to obtain multiple estimates when considering measure installations.  Since actual installed costs can vary widely for a particular installation, and for conditions which cannot be known prior to in-depth investigation and design, the Program Manager does not guarantee installed cost estimates and shall in no event be liable should actual installed costs vary from the estimated costs to be provided."]
[]
[null,"LIMITATION OF LIABILITY – By virtue of participating in this Program, applicants agree to waive any and all claims or damages against TRC Energy Services, the Commercial/Industrial Program Manager, and the Administrator, except the receipt of the Program Incentive (i.e. free energy audit).  Applicants agree that the Program Manager’s and Administrator’s liability, in connection with this Program, is limited to paying the Program Incentive specified.  Under no circumstances shall the Program Manager, its representatives, or subcontractors, or the Administrator, be liable for any lost profits, special, punitive, consequential or incidental damages or for any other damages or claims connected with or resulting from participation in this Program.  Further, any liability attributed to the Program Manager under this Program shall be individual, and not joint and/or several. "]
[]
[null,"NEW JERSEY UTILITIES – The investor-owned electric and/or gas utilities in the State of New Jersey. They are: Atlantic City Electric, Jersey Central Power & Light, Rockland Electric Company, New Jersey Natural Gas, Elizabethtown Gas, PSE&G, and South Jersey Gas."]
[]
[null,"PROGRAM OFFER – The Program covers products purchased and/or services rendered on or after March 24, 2015 through June 30, 2016. ",null,null,null,null,null,null,null,null,null,null,null,null,null," "]
[]
[null,"RESOLUTION - A resolution is no longer required to be passed by the local governing body in order to participate in this program. If your local governing body requires a resolution in order to apply or receive a free energy audit in this program, you may refer to Sustainable Jersey's website for suggested language for drafting a resolution for the Energy Efficiency: Energy Audits action (available soon)."]
[]
[null,"SCOPE OF WORK - An agreement of the work that is to be performed at a facility for a particular cost. See the “Program Guidelines” tab for more information."]
[]
[null,"SOCIETAL BENEFITS CHARGE (“SBC”) – The Societal Benefits Charge fund was created by the state of New Jersey’s 1999 Electricity Restructuring Law, requiring all New Jersey utility customers to pay a charge on their monthly bills. A portion of this charge is used to fund the New Jersey’s Clean Energy Programs, including this Program."]
[]
[null,"TERMINATION – The Program Manager and/or Administrator reserves the right to extend, modify or terminate this Program without prior or further notice.   "]
[]
[null,"WARRANTIES – The Program Manager and Administrator do not warrant the performance of installed equipment, and/or services rendered as part of this Program, either expressly or implicitly.  No warranties or representations of any kind, whether statutory, expressed, or implied, including, without limitations, warranties of merchantability or fitness for a particular purpose regarding equipment or services provided by a manufacturer or vendor. Contact your vendor/services provider for details regarding performance and warranties."]

{"sheet":"Signature Page","index":6,"n_rows":28,"n_cols":9,"rows_kept":28,"cut":false,"hidden":false,"merged":[[0,1,0,13],[8,1,8,11],[8,12,8,13],[9,1,9,11],[9,12,9,13],[1,1,1,13],[4,1,4,2],[4,3,4,11],[2,1,2,13],[6,1,6,11],[6,12,6,13],[7,1,7,11],[3,1,3,13],[5,1,5,13],[4,12,4,13],[7,12,7,13],[11,1,11,11],[11,12,11,13],[10,1,10,13],[19,14,21,16],[19,1,19,13],[12,1,18,13]]}
[null,"LOCAL GOVERNMENT ENERGY AUDIT (LGEA) PROGRAM                                                                 \nProgram Guidelines & Application\n\nJuly 1, 2016 - June 30, 2017                                                                                                         "]
[null,"Application Checklist & Signature Page"]
[null,"Before submitting your application, please make sure you have signed in the space below and completed the following items:"]
[]
[null,"Applying Entity:"]
[]
[null,"All tabs of the application workbook have been filled out and/or addressed "]
[null,"14 months of applicable, consecutive utility bills are included (electric, gas, fuel oil, propane, etc.)"]
[null,"Terms & Conditions have been read and acknowledged by all parties"]
[null,"Signature Page signed below by the Applying Entity, and Designated Representative (if applicable) "]
[]
[null,"Non-profit charitable organizations (only) - Include letter from IRS stating exemption under Section 501(c)(3) of Internal Revenue Code"]
[null,"ACKNOWLEDGEMENT – I have read, understood and am in compliance with all rules and regulations concerning this Program. I certify that all information provided is correct to the best of my knowledge, and I give the Program Manager permission to share my records with the New Jersey Board of Public Utilities, and contractors it selects to manage, coordinate or evaluate the Program, including the release of electric and natural gas utility billing information, sharing of ENERGY STAR® Portfolio Manager data and access, as well as make available to the public non-sensitive information. I allow reasonable access to my property to inspect the existing conditions of the facility or facilities in order to determine eligibility under the guidelines of New Jersey’s Clean Energy Program. This arrangement supersedes all other communications and representations. Acceptance into the Program is dependent on receiving an Approval Letter/Notice to Proceed from the program. "]
[]
[]
[]
[]
[]
[]
[null,"This section must be signed by Mayor, Business Administrator, Executive Director, or some comparable decision-maker at the applying entity. If applicable, the Designated Representative identified on the Registration Form tab must also sign here.\n"]
[null,"Applicant",null,null,null,null,null,null,"Designated Representative (if applicable)"]
[null,"(Must be a person authorized to execute contracts)"]
[]
[null,"Print Name, Title:  _______________________________________",null,null,null,null,null,null,"Print Name, Title:  _________________________________________"]
[]
[null,"Signature:               _______________________________________",null,null,null,null,null,null,"Signature:               _________________________________________"]
[]
[null,"Date:                        _______________________________________",null,null,null,null,null,null,"Date:                        _________________________________________"]

{"sheet":"Version","index":7,"n_rows":3,"n_cols":4,"rows_kept":3,"cut":false,"hidden":true,"merged":[]}
["Version","Date","Changes","Initials"]
[1,"2016-03-24","n/a","AM"]
[1.1000000000000001,"2016-06-28","1) Added 3rd party supplier identification in Building & Utility Data tab\n2) Clarified 14 months total kWh & costs (not annual)\n3) Added \"Year of Last Renovation\"\n4) Added column for notes and additional site info (i.e. onsite generation, battery storage, facility change of use, etc.)\n5) Now asking for existing PM accounts\n6) Added 501(c)(3) checkbox to Signature Page\n7) If a previous participant, asking for any major/notable work since last energy audit.","AM"]

{"sheet":"Support","index":8,"n_rows":19,"n_cols":6,"rows_kept":19,"cut":false,"hidden":true,"merged":[]}
["Building Type","Electric Utility","Gas Utility"]
["Center/Meeting Hall","Atlantic City Electric","South Jersey Gas",null,null,"Yes"]
["Emergency Services","PSE&G","New Jersey Natural Gas",null,null,"No"]
["Fire/Police Station","Rockland Electric Co.","Elizabethtown Gas",null,null,"Unsure"]
["Garage","Jersey Central P&L","PSE&G"]
["Higher Education - Private","Borough of Butler"]
["Higher Education - Public","Borough of Lavallette"]
["Hospital/Healthcare","Borough of Madison"]
["Library","Borough of Milltown"]
["Multifamily","Borough of Park Ridge"]
["Municipal","Borough of Pemberton"]
["Office","Borough of Seaside Heights"]
["Other - General","Borough of South River"]
["Other - Special","City of Vineland"]
["Rec./Entertainment/Parks","Sussex Rural Electric Cooperative"]
["Religious"]
["School (K-12)"]
["State Facility"]
["Water/Wastewater Treatment/Pumping"]